fUST/lending_fUST_20240303
["ID","MTS","AMOUNT","RATE_DAILY","PERIOD"]
[316409054,1709471438572,-500.0,0.00022892,2]
[316409056,1709471438581,-500.90378747,0.00022892,2]
[316409058,1709471438590,-618.91563689,0.00022892,2]
[316409060,1709471438598,-151.25186574,0.00022892,2]
[316409062,1709471438607,-500.0,0.00022892,2]
[316409064,1709471438616,-500.0,0.00022892,2]
[316409066,1709471438626,-500.0,0.00022892,2]
[316409068,1709471438635,-361.59,0.00022892,2]
[316409070,1709471438644,-501.10889387,0.00022892,2]
[316409071,1709471438653,-500.0,0.00022892,2]
[316409073,1709471438662,-500.0,0.00022892,2]
[316409075,1709471438671,-500.0,0.00022892,2]
[316409078,1709471438681,-500.0,0.00022892,2]
[316409079,1709471438690,-500.0,0.00022892,2]
[316409081,1709471438700,-500.0,0.00022892,2]
[316409084,1709471438709,-500.0,0.00022892,2]
[316409085,1709471438718,-625.59005321,0.00022892,2]
[316409087,1709471438727,-500.0,0.00022892,2]
[316409089,1709471438737,-500.0,0.00022892,2]
[316409091,1709471438746,-500.0,0.00022892,2]
[316409094,1709471438757,-500.0,0.00022892,2]
[316409095,1709471438766,-500.0,0.00022892,2]
[316409097,1709471438776,-500.59333258,0.00022892,2]
[316409100,1709471438786,-500.0,0.00022892,2]
[316409101,1709471438796,-500.0,0.00022892,2]
[316409103,1709471438805,-500.0,0.00022892,2]
[316409106,1709471438815,-500.0,0.00022892,2]
[316409107,1709471438825,-500.0,0.00022892,2]
[316409109,1709471438834,-500.0,0.00022892,2]
[316409111,1709471438845,-226.95585946,0.00022892,2]
[316409114,1709471438855,-500.0,0.00022892,2]
[316409115,1709471438866,-500.0,0.00022892,2]
[316409117,1709471438879,-500.0,0.00022892,2]
[316409119,1709471438889,-500.0,0.00022892,2]
[316409121,1709471438899,-500.0,0.00022892,2]
[316409123,1709471438909,-500.0,0.00022892,2]
[316409125,1709471438919,-500.0,0.00022892,2]
[316409127,1709471438928,-500.0,0.00022892,2]
[316409130,1709471438938,-500.0,0.00022892,2]
[316409132,1709471438949,-500.0,0.00022892,2]
[316409133,1709471438958,-500.0,0.00022892,2]
[316409136,1709471438968,-500.0,0.00022892,2]
[316409137,1709471438978,-1427.52,0.00022892,2]
[316409139,1709471438987,-500.0,0.00022892,2]
[316409141,1709471438996,-500.0,0.00022892,2]
[316409144,1709471439007,-479.38443512,0.00022892,2]
[316409145,1709471439017,-500.0,0.00022892,2]
[316409148,1709471439027,-500.0,0.00022892,2]
[316409150,1709471439038,-500.0,0.00022892,2]
[316409151,1709471439047,-500.0,0.00022892,2]
[316409154,1709471439056,-500.0,0.00022893,2]
[316409155,1709471439066,-500.0,0.00022893,2]
[316409157,1709471439075,-500.0,0.00022893,2]
[316409159,1709471439085,-500.0,0.00022893,2]
[316409161,1709471439094,-500.0,0.00022893,2]
[316409163,1709471439104,-500.60249797,0.00022893,2]
[316409165,1709471439113,-500.0,0.00022893,2]
[316409167,1709471439122,-500.0,0.00022893,2]
[316409169,1709471439131,-500.0,0.00022893,2]
[316409171,1709471439140,-500.0,0.00022893,2]
[316409173,1709471439149,-500.0,0.00022893,2]
[316409175,1709471439159,-500.81974996,0.00022893,2]
[316409177,1709471439168,-500.0,0.00022893,2]
[316409179,1709471439177,-500.0,0.00022893,2]
[316409181,1709471439187,-500.77356801,0.00022893,2]
[316409183,1709471439196,-200.20238129,0.00022893,2]
[316409185,1709471439206,-500.0,0.00022893,2]
[316409187,1709471439215,-500.0,0.00022893,2]
[316409189,1709471439224,-503.79884236,0.00022893,2]
[316409191,1709471439233,-501.86518142,0.00022893,2]
[316409193,1709471439242,-500.0,0.00022893,2]
[316409195,1709471439252,-500.9200078,0.00022893,2]
[316409197,1709471439261,-502.11545745,0.00022893,2]
[316409199,1709471439270,-500.0,0.00022893,2]
[316409201,1709471439279,-500.36956817,0.00022893,2]
[316409203,1709471439289,-500.0,0.00022893,2]
[316409205,1709471439298,-500.0,0.00022893,2]
[316409207,1709471439307,-499.50090581,0.00022893,2]
[316409209,1709471439316,-500.0,0.00022893,2]
[316409211,1709471439325,-500.0,0.00022893,2]
[316409213,1709471439335,-500.0,0.00022893,2]
[316409215,1709471439344,-501.02254031,0.00022893,2]
[316409217,1709471439353,-501.50055298,0.00022893,2]
[316409219,1709471439363,-500.0,0.00022893,2]
[316409221,1709471439372,-500.0,0.00022893,2]
[316409223,1709471439382,-500.0,0.00022893,2]
[316409225,1709471439391,-500.0,0.00022893,2]
[316409227,1709471439400,-500.0,0.00022893,2]
[316409229,1709471439409,-500.12393579,0.00022893,2]
[316409231,1709471439418,-500.0,0.00022893,2]
[316409233,1709471439427,-500.0,0.00022893,2]
[316409235,1709471439436,-500.0,0.00022893,2]
[316409237,1709471439445,-500.0,0.00022893,2]
[316409248,1709471439543,-500.0,0.00022893,2]
[316409250,1709471439553,-500.0,0.00022893,2]
[316409252,1709471439562,-500.0,0.00022893,2]
[316409254,1709471439571,-500.00706961,0.00022893,2]
[316409256,1709471439580,-500.0,0.00022893,2]
[316409258,1709471439589,-500.0,0.00022893,2]
[316409260,1709471439598,-422.64886006,0.00022893,2]
[316409262,1709471439607,-500.0,0.00022893,2]
[316409264,1709471439616,-500.0,0.00022893,2]
[316409266,1709471439625,-500.0,0.00022893,2]
[316409268,1709471439634,-500.0,0.00022893,2]
[316409270,1709471439643,-627.70059011,0.00022893,2]
[316409272,1709471439653,-500.0,0.00022893,2]
[316409274,1709471439662,-500.0,0.00022893,2]
[316409276,1709471439673,-500.0,0.00022893,2]
[316409278,1709471439682,-500.0,0.00022893,2]
[316409280,1709471439691,-500.96141887,0.00022893,2]
[316409282,1709471439700,-500.0,0.00022893,2]
[316409284,1709471439710,-331.79584945,0.00022893,2]
[316409286,1709471439719,-500.0,0.00022893,2]
[316409288,1709471439728,-500.0,0.00022893,2]
[316409290,1709471439737,-500.0,0.00022893,2]
[316409292,1709471439746,-402.00726075,0.00022893,2]
[316409294,1709471439757,-500.0,0.00022893,2]
[316409296,1709471439766,-500.0,0.00022926,2]
[316409298,1709471439775,-434.80036403,0.00022926,2]
[316409300,1709471439784,-601.57558473,0.00022926,2]
[316409302,1709471439793,-500.0,0.00022926,2]
[316409304,1709471439802,-500.0,0.00022926,2]
[316409306,1709471439811,-500.0,0.00022926,2]
[316409308,1709471439820,-500.0,0.00022926,2]
[316409310,1709471439829,-500.0,0.00022926,2]
[316409312,1709471439839,-500.0,0.00022926,2]
[316409314,1709471439848,-500.0,0.00022926,2]
[316409316,1709471439858,-500.0,0.00022926,2]
[316409318,1709471439868,-500.0,0.00022926,2]
[316409320,1709471439880,-500.0,0.00022926,2]
[316409322,1709471439889,-500.0,0.00022926,2]
[316409324,1709471439898,-502.39663179,0.00022926,2]
[316409326,1709471439907,-502.48015241,0.00022926,2]
[316409328,1709471439916,-955.37,0.00022926,2]
[316409329,1709471439926,-502.22028516,0.00022926,2]
[316409331,1709471439935,-500.0,0.00022926,2]
[316409333,1709471439944,-556.71,0.00022926,2]
[316409335,1709471439955,-533.12,0.00022926,2]
[316409337,1709471439965,-500.0,0.00022926,2]
[316409339,1709471439975,-500.0,0.00022926,2]
[316409341,1709471439983,-500.0,0.00022926,2]
[316409343,1709471439993,-500.0,0.00022926,2]
[316409345,1709471440002,-500.0,0.00022926,2]
[316409347,1709471440011,-500.0,0.00022926,2]
[316409349,1709471440020,-500.0,0.00022926,2]
[316409351,1709471440030,-500.0,0.00022926,2]
[316409353,1709471440038,-500.0,0.00022926,2]
[316409355,1709471440047,-318.97,0.00022926,2]
[316409357,1709471440056,-500.0,0.00022927,2]
[316409359,1709471440065,-567.44751854,0.00022927,2]
[316409361,1709471440074,-500.0,0.00022927,2]
[316409363,1709471440084,-500.0,0.00022927,2]
[316409365,1709471440093,-500.0,0.00022927,2]
[316409367,1709471440102,-500.0,0.00022927,2]
[316409369,1709471440111,-500.0,0.00022927,2]
[316409371,1709471440120,-500.0,0.00022927,2]
[316409373,1709471440130,-500.0,0.00022927,2]
[316409375,1709471440139,-500.0,0.00022927,2]
[316409377,1709471440148,-500.0,0.00022927,2]
[316409379,1709471440157,-500.0,0.00022927,2]
[316409381,1709471440167,-278.75445995,0.00022927,2]
[316409383,1709471440176,-500.0,0.00022927,2]
[316409385,1709471440186,-501.38027476,0.00022927,2]
[316409387,1709471440194,-501.64879183,0.00022927,2]
[316409389,1709471440203,-500.0,0.00022927,2]
[316409391,1709471440212,-501.46362911,0.00022927,2]
[316409393,1709471440222,-500.0,0.00022927,2]
[316409395,1709471440231,-500.0,0.00022927,2]
[316409397,1709471440240,-500.0,0.00022927,2]
[316409399,1709471440251,-544.17746409,0.00022927,2]
[316409401,1709471440261,-500.0,0.00022927,2]
[316409403,1709471440271,-500.0,0.00022927,2]
[316409405,1709471440280,-17193.1412368,0.00022928,3]
[316409407,1709471440289,-4313.5727343,0.00022928,2]
[316409409,1709471440299,-4226.43398392,0.00022928,3]
[316409411,1709471440308,-1882.90641573,0.00022928,3]
[316409413,1709471440317,-428.30558324,0.00023,2]
[316409416,1709471440331,-1575.53633516,0.00023,2]
[316409418,1709471440340,-2096.48480298,0.00023,2]
[316409420,1709471440349,-155.0,0.00023,2]
[316409422,1709471440359,-153.0,0.00023178,2]
[316409424,1709471440368,-153.0,0.00023178,2]
[316409426,1709471440378,-505.70852017,0.000237,2]
[316409428,1709471440386,-505.70852008,0.00023722,2]
[316409430,1709471440396,-505.70852008,0.00023744,2]
[316409432,1709471440405,-505.70852008,0.00023767,2]
[316409434,1709471440414,-505.70852008,0.00023789,2]
[316409436,1709471440423,-297.62278972,0.00023797,2]
[316409438,1709471440435,-202.37721028,0.00023797,2]
[316409440,1709471440444,-502.87295089,0.00023798,2]
[316409442,1709471440453,-417.34105156,0.00023798,2]
[316409444,1709471440462,-500.0,0.00023798,2]
[316409446,1709471440471,-500.0,0.00023798,2]
[316409448,1709471440482,-500.0,0.00023798,2]
[316409450,1709471440491,-500.0,0.00023798,2]
[316409452,1709471440500,-152.86902131,0.00023798,2]
[316409454,1709471440512,-347.13097869,0.00023798,2]
[316409456,1709471440520,-272.46666676,0.00023798,2]
[316409459,1709471440538,-227.53333324,0.00023798,2]
[316409462,1709471440550,-693.98550766,0.00023798,2]
[316409473,1709471440659,-204.50449234,0.00023798,2]
[316409475,1709471440669,-898.49,0.00023798,2]
[316409478,1709471440681,-500.0,0.00023798,2]
[316409480,1709471440693,-172.53102075,0.00023798,2]
[316409483,1709471440709,-327.46897925,0.00023798,2]
[316409485,1709471440720,-500.0,0.00023798,2]
[316409487,1709471440731,-500.0,0.00023798,2]
[316409489,1709471440742,-500.0,0.00023798,2]
[316409491,1709471440754,-459.8294432,0.00023798,2]
[316409494,1709471440773,-40.1705568,0.00023798,2]
[316409497,1709471440785,-500.0,0.00023798,2]
[316409499,1709471440796,-500.0,0.00023798,2]
[316409501,1709471440806,-500.0,0.00023798,2]
[316409503,1709471440816,-500.0,0.00023798,2]
[316409505,1709471440829,-166.56,0.00023798,2]
[316409507,1709471440842,-617.15676975,0.00023798,2]
[316409510,1709471440854,-500.0,0.00023798,2]
[316409512,1709471440868,-500.0,0.00023798,2]
[316409514,1709471440885,-500.0,0.00023799,2]
[316409516,1709471440896,-500.0,0.00023799,2]
[316409518,1709471440909,-509.4579801,0.00023799,2]
[316409521,1709471440919,-500.0,0.00023799,2]
[316409523,1709471440931,-500.0,0.00023799,2]
[316409525,1709471440943,-500.0,0.00023799,2]
[316409527,1709471440955,-500.0,0.00023799,2]
[316409529,1709471440966,-500.0,0.00023799,2]
[316409532,1709471440978,-507.96588146,0.00023799,2]
[316409534,1709471440989,-500.0,0.00023799,2]
[316409536,1709471441002,-500.0,0.00023799,2]
[316409538,1709471441013,-500.0,0.00023799,2]
[316409541,1709471441025,-514.81005783,0.00023799,2]
[316409543,1709471441037,-500.0,0.00023799,2]
[316409545,1709471441047,-500.0,0.00023799,2]
[316409547,1709471441057,-500.0,0.00023799,2]
[316409549,1709471441067,-500.0,0.00023799,2]
[316409551,1709471441077,-500.0,0.00023799,2]
[316409553,1709471441088,-500.0,0.00023799,2]
[316409555,1709471441098,-500.0,0.00023799,2]
[316409557,1709471441109,-500.0,0.00023799,2]
[316409559,1709471441120,-500.0,0.00023799,2]
[316409562,1709471441131,-506.21161018,0.00023799,2]
[316409564,1709471441142,-500.0,0.00023799,2]
[316409566,1709471441153,-500.0,0.00023799,2]
[316409568,1709471441164,-500.0,0.00023799,2]
[316409571,1709471441174,-593.13354927,0.00023799,2]
[316409573,1709471441184,-500.0,0.00023799,2]
[316409575,1709471441195,-500.0,0.00023799,2]
[316409577,1709471441205,-500.0,0.00023799,2]
[316409579,1709471441215,-500.0,0.00023799,2]
[316409581,1709471441224,-460.86714912,0.00023799,2]
[316409583,1709471441234,-500.0,0.00023799,2]
[316409585,1709471441245,-500.0,0.00023799,2]
[316409587,1709471441257,-500.0,0.00023799,2]
[316409589,1709471441267,-500.0,0.00023799,2]
[316409591,1709471441278,-500.0,0.00023799,2]
[316409594,1709471441289,-500.0,0.00023799,2]
[316409596,1709471441299,-500.0,0.00023799,2]
[316409598,1709471441309,-500.0,0.00023799,2]
[316409600,1709471441321,-500.0,0.00023799,2]
[316409602,1709471441331,-500.0,0.00023799,2]
[316409604,1709471441342,-500.0,0.00023799,2]
[316409606,1709471441356,-500.0,0.00023799,2]
[316409608,1709471441366,-500.0,0.00023799,2]
[316409610,1709471441377,-500.0,0.00023799,2]
[316409613,1709471441389,-500.0,0.00023799,2]
[316409615,1709471441399,-501.97279534,0.00023799,2]
[316409617,1709471441410,-500.0,0.00023799,2]
[316409619,1709471441421,-509.10813703,0.00023799,2]
[316409621,1709471441433,-500.0,0.00023799,2]
[316409624,1709471441443,-508.53966518,0.00023799,2]
[316409626,1709471441454,-500.0,0.00023799,2]
[316409628,1709471441465,-500.0,0.00023799,2]
[316409630,1709471441475,-500.0,0.00023799,2]
[316409632,1709471441488,-500.0,0.00023799,2]
[316409634,1709471441498,-170.67,0.00023799,2]
[316409636,1709471441510,-955.37,0.00023799,2]
[316409639,1709471441520,-955.37,0.00023799,2]
[316409641,1709471441531,-955.37,0.00023799,2]
[316409643,1709471441541,-733.3231717,0.00023799,2]
[316409646,1709471441558,-222.0468283,0.00023799,2]
[316409648,1709471441569,-955.37,0.00023799,2]
[316409650,1709471441580,-955.37,0.00023799,2]
[316409652,1709471441590,-666.01653845,0.00023799,2]
[316409655,1709471441604,-289.35346155,0.00023799,2]
[316409657,1709471441613,-500.0,0.00023799,2]
[316409669,1709471441726,-500.0,0.00023799,2]
[316409672,1709471441736,-500.0,0.00023799,2]
[316409674,1709471441746,-500.0,0.00023799,2]
[316409676,1709471441755,-500.0,0.00023799,2]
[316409678,1709471441763,-500.0,0.00023799,2]
[316409680,1709471441772,-500.0,0.00023799,2]
[316409682,1709471441781,-500.0,0.00023799,2]
[316409684,1709471441790,-500.0,0.00023799,2]
[316409685,1709471441798,-500.0,0.00023799,2]
[316409688,1709471441807,-500.0,0.00023799,2]
[316409689,1709471441816,-462.01,0.00023799,2]
[316409691,1709471441825,-500.0,0.00023799,2]
[316409693,1709471441834,-500.0,0.00023799,2]
[316409695,1709471441843,-500.0,0.00023799,2]
[316409697,1709471441853,-500.0,0.00023799,2]
[316409699,1709471441863,-500.0,0.00023799,2]
[316409701,1709471441878,-500.0,0.00023799,2]
[316409703,1709471441887,-500.0,0.00023799,2]
[316409705,1709471441897,-533.12,0.00023799,2]
[316409707,1709471441906,-533.12,0.00023799,2]
[316409709,1709471441917,-533.12,0.00023799,2]
[316409711,1709471441927,-533.12,0.00023799,2]
[316409713,1709471441936,-533.12,0.00023799,2]
[316409716,1709471441946,-533.12,0.00023799,2]
[316409717,1709471441956,-57.57993063,0.00023799,2]
[316409720,1709471441972,-475.54006937,0.00023799,2]
[316409722,1709471441981,-500.0,0.00023799,2]
[316409724,1709471441990,-500.0,0.00023799,2]
[316409726,1709471441999,-500.0,0.00023799,2]
[316409728,1709471442010,-500.0,0.00023799,2]
[316409730,1709471442019,-500.0,0.00023799,2]
[316409732,1709471442028,-296.16536563,0.00023799,2]
[316409740,1709471442182,-500.0,0.00021894,2]
[316409741,1709471442192,-327.77010925,0.00022826,2]
[316409742,1709471442202,-500.0,0.00022892,2]
[316409743,1709471442211,-500.0,0.00022926,2]
[316409744,1709471442220,-203.83463437,0.00023799,2]
[316409746,1709471442229,-500.0,0.00023799,2]
[316409747,1709471442238,-500.0,0.00023799,2]
[316409748,1709471442247,-500.0,0.00023799,2]
[316409749,1709471442257,-500.0,0.00023799,2]
[316409750,1709471442265,-500.0,0.00023799,2]
[316409751,1709471442275,-500.0,0.00023799,2]
[316409753,1709471442284,-500.0,0.00023799,2]
[316409754,1709471442293,-500.0,0.00023799,2]
[316409756,1709471442303,-500.0,0.00023799,2]
[316409758,1709471442312,-500.0,0.00023799,2]
[316409760,1709471442321,-500.0,0.00023799,2]
[316409763,1709471442330,-500.0,0.00023799,2]
[316409765,1709471442339,-475.92423792,0.00023799,2]
[316409766,1709471442348,-500.0,0.00023799,2]
[316409768,1709471442357,-500.0,0.00023799,2]
[316409770,1709471442367,-500.0,0.00023799,2]
[316409772,1709471442376,-500.0,0.00023799,2]
[316409774,1709471442385,-648.18345351,0.00023799,2]
[316409776,1709471442395,-500.0,0.00023799,2]
[316409778,1709471442404,-500.0,0.00023799,2]
[316409780,1709471442414,-537.64312269,0.00023799,2]
[316409782,1709471442423,-500.0,0.00023799,2]
[316409784,1709471442434,-500.0,0.00023799,2]
[316409786,1709471442443,-500.0,0.00023799,2]
[316409788,1709471442453,-500.0,0.00023799,2]
[316409790,1709471442463,-500.0,0.00023799,2]
[316409792,1709471442471,-500.0,0.00023799,2]
[316409794,1709471442481,-595.0575389,0.00023799,2]
[316409796,1709471442490,-500.0,0.00023799,2]
[316409798,1709471442499,-500.0,0.00023799,2]
[316409800,1709471442509,-500.0,0.00023799,2]
[316409802,1709471442518,-281.48038246,0.00023799,2]
[316409804,1709471442527,-500.0,0.00023799,2]
[316409806,1709471442536,-500.0,0.00023799,2]
[316409808,1709471442545,-500.0,0.00023799,2]
[316409810,1709471442554,-500.0,0.00023799,2]
[316409812,1709471442563,-500.0,0.00023799,2]
[316409814,1709471442572,-500.0,0.00023799,2]
[316409816,1709471442581,-500.0,0.00023799,2]
[316409818,1709471442591,-500.0,0.00023799,2]
[316409820,1709471442600,-500.0,0.00023799,2]
[316409822,1709471442609,-500.0,0.00023799,2]
[316409824,1709471442618,-500.0,0.00023799,2]
[316409826,1709471442627,-500.0,0.00023799,2]
[316409828,1709471442636,-500.0,0.00023799,2]
[316409829,1709471442646,-500.0,0.00023799,2]
[316409831,1709471442655,-500.0,0.00023799,2]
[316409833,1709471442664,-500.0,0.00023799,2]
[316409835,1709471442673,-500.0,0.00023799,2]
[316409837,1709471442682,-500.0,0.00023799,2]
[316409839,1709471442692,-500.0,0.00023799,2]
[316409841,1709471442702,-500.0,0.00023799,2]
[316409843,1709471442711,-500.0,0.00023799,2]
[316409845,1709471442720,-500.0,0.00023799,2]
[316409847,1709471442730,-500.0,0.00023799,2]
[316409849,1709471442739,-1427.52,0.00023799,2]
[316409851,1709471442748,-1427.52,0.00023799,2]
[316409853,1709471442757,-1427.52,0.00023799,2]
[316409855,1709471442765,-1427.52,0.00023799,2]
[316409857,1709471442774,-1427.52,0.00023799,2]
[316409859,1709471442784,-1427.52,0.00023799,2]
[316409861,1709471442792,-1427.52,0.00023799,2]
[316409863,1709471442802,-500.0,0.00023799,2]
[316409865,1709471442811,-500.0,0.00023799,2]
[316409867,1709471442820,-500.0,0.00023799,2]
[316409869,1709471442829,-500.0,0.00023799,2]
[316409871,1709471442838,-500.0,0.00023799,2]
[316409873,1709471442847,-500.0,0.00023799,2]
[316409875,1709471442856,-500.0,0.00023799,2]
[316409877,1709471442867,-500.0,0.00023799,2]
[316409879,1709471442880,-500.0,0.00023799,2]
[316409881,1709471442889,-500.0,0.00023799,2]
[316409883,1709471442898,-500.0,0.00023799,2]
[316409885,1709471442907,-500.0,0.00023799,2]
[316409887,1709471442918,-500.0,0.00023799,2]
[316409889,1709471442927,-500.0,0.00023799,2]
[316409891,1709471442935,-500.0,0.00023799,2]
[316409893,1709471442944,-500.0,0.00023799,2]
[316409895,1709471442955,-500.0,0.00023799,2]
[316409897,1709471442964,-500.0,0.00023799,2]
[316409899,1709471442973,-500.0,0.00023799,2]
[316409901,1709471442982,-13322.95479293,0.000238,2]
[316409903,1709471442995,-15812.18114826,0.000238,2]
[316409905,1709471443008,-9396.57629769,0.000238,2]
[316409908,1709471443019,-39493.56802389,0.000238,2]
[316409912,1709471443030,-8960.59478862,0.000238,2]
[316409915,1709471443042,-774.57842176,0.000238,2]
[316409917,1709471443053,-123335.3469697,0.000238,2]
[316409919,1709471443064,-20102.2344258,0.000238,2]
[316409921,1709471443075,-23981.24575879,0.000238,2]
[316409923,1709471443086,-3538.82693698,0.000238,2]
[316409926,1709471443097,-1306.40410623,0.000238,2]
[316409928,1709471443107,-606.32476801,0.000238,2]
[316409931,1709471443129,-327.77010923,0.00023045,2]
[316409933,1709471443137,-859.36664044,0.000238,2]
[316409992,1709471443680,154.98450155,0.00018806,2]
[316410263,1709471446349,-500.0,0.00021894,2]
[316410265,1709471446359,-500.0,0.00022892,2]
[316410267,1709471446369,-500.0,0.00022926,2]
[316410269,1709471446379,-327.77010923,0.00023263,2]
[316410271,1709471446388,-500.0,0.00023799,2]
[316410273,1709471446398,-500.0,0.00023799,2]
[316410275,1709471446407,-14509.7969209,0.000238,2]
[316410277,1709471446417,-7970.96412333,0.000238,7]
[316410279,1709471446427,-153.0,0.00023808,2]
[316410281,1709471446436,-505.70852008,0.00023811,2]
[316410283,1709471446446,-505.70852008,0.00023833,2]
[316410285,1709471446455,-505.70852008,0.00023856,2]
[316410287,1709471446465,-505.70852008,0.00023878,2]
[316410289,1709471446474,-955.37,0.00023897,2]
[316410291,1709471446484,-220.25450984,0.00023897,2]
[316410293,1709471446493,-533.12,0.00023897,2]
[316410295,1709471446503,-500.0,0.00023897,2]
[316410297,1709471446513,-500.0,0.00023897,2]
[316410299,1709471446523,-500.0,0.00023897,2]
[316410301,1709471446532,-500.0,0.00023898,2]
[316410303,1709471446541,-190.70852058,0.00023898,2]
[316410312,1709471446620,-955.37,0.00023898,2]
[316410315,1709471446647,-955.37,0.00023898,2]
[316410317,1709471446657,-533.12,0.00023898,2]
[316410319,1709471446666,-533.12,0.00023898,2]
[316410321,1709471446676,-500.0,0.00023898,2]
[316410323,1709471446685,-369.95557117,0.00023898,2]
[316410324,1709471446695,-500.0,0.00023898,2]
[316410327,1709471446705,-500.0,0.00023898,2]
[316410329,1709471446715,-500.0,0.00023898,2]
[316410331,1709471446725,-624.33263407,0.00023898,2]
[316410332,1709471446735,-1427.52,0.00023898,2]
[316410335,1709471446745,-1427.52,0.00023898,2]
[316410336,1709471446755,-500.0,0.00023898,2]
[316410338,1709471446765,-500.0,0.00023898,2]
[316410340,1709471446775,-500.0,0.00023898,2]
[316410343,1709471446787,-500.0,0.00023898,2]
[316410345,1709471446796,-502.94782916,0.00023899,2]
[316410347,1709471446805,-500.0,0.00023899,2]
[316410349,1709471446815,-576.1236502,0.00023899,2]
[316410350,1709471446825,-500.0,0.00023899,2]
[316410352,1709471446840,-500.0,0.00023899,2]
[316410355,1709471446850,-500.0,0.00023899,2]
[316410357,1709471446862,-500.0,0.00023899,2]
[316410359,1709471446874,-500.88551762,0.00023899,2]
[316410360,1709471446891,-501.83609448,0.00023899,2]
[316410363,1709471446901,-500.0,0.00023899,2]
[316410365,1709471446912,-501.07788569,0.00023899,2]
[316410367,1709471446922,-500.0,0.00023899,2]
[316410369,1709471446932,-563.25921371,0.00023899,2]
[316410371,1709471446942,-500.0,0.00023899,2]
[316410373,1709471446952,-501.1861057,0.00023899,2]
[316410375,1709471446964,-500.59759999,0.00023899,2]
[316410377,1709471446974,-500.0,0.00023899,2]
[316410379,1709471446984,-500.0,0.00023899,2]
[316410381,1709471446994,-393.34973029,0.00023899,2]
[316410383,1709471447003,-500.0,0.00023899,2]
[316410385,1709471447015,-500.0,0.00023899,2]
[316410387,1709471447024,-500.0,0.00023899,2]
[316410389,1709471447033,-500.0,0.00023899,2]
[316410391,1709471447043,-500.0,0.00023899,2]
[316410393,1709471447053,-500.0,0.00023899,2]
[316410395,1709471447063,-500.0,0.00023899,2]
[316410397,1709471447073,-500.0,0.00023899,2]
[316410399,1709471447083,-500.0,0.00023899,2]
[316410401,1709471447092,-500.0,0.00023899,2]
[316410403,1709471447101,-503.64082888,0.00023899,2]
[316410405,1709471447110,-500.0,0.00023899,2]
[316410407,1709471447119,-290.36412052,0.00023899,2]
[316410409,1709471447128,-500.0,0.00023899,2]
[316410411,1709471447138,-500.0,0.00023899,2]
[316410413,1709471447148,-166.83241099,0.00023899,2]
[316410415,1709471447157,-500.0,0.00023899,2]
[316410417,1709471447166,-500.0,0.00023899,2]
[316410419,1709471447176,-533.43198909,0.00023899,2]
[316410421,1709471447185,-500.0,0.00023899,2]
[316410423,1709471447195,-500.0,0.00023899,2]
[316410425,1709471447204,-500.0,0.00023899,2]
[316410427,1709471447214,-500.0,0.00023899,2]
[316410429,1709471447223,-500.0,0.00023899,2]
[316410431,1709471447232,-500.0,0.00023899,2]
[316410433,1709471447242,-500.0,0.00023899,2]